[Event "Titled Tuesday Blitz March 01 Late 2022"]
[White "Petrova, Irina"]
[Black "Plotnikov, Pavel"]
[WhiteFideId "14124122"]
[BlackFideId "4170342"]
[WhiteElo "1988"]
[BlackElo "2298"]
[Result "1/2-1/2"]
[Round "02"]
[TimeControl "180+1"]
[Date "2022.03.02"]
[WhiteClock "0:00:10"]
[BlackClock "0:00:33"]

1. e4 {[%clk 0:03:00]}  e6 {[%clk 0:02:59]} 2. d4 {[%clk 0:03:00]}  d5 {[%clk 0:02:58]} 3. Nc3 {[%clk 0:03:01]}  Nf6 {[%clk 0:02:58]} 4. Bg5 {[%clk 0:02:59]}  Be7 {[%clk 0:02:58]} 5. e5 {[%clk 0:02:59]}  Nfd7 {[%clk 0:02:57]} 6. Bxe7 {[%clk 0:03:00]}  Qxe7 {[%clk 0:02:58]} 7. f4 {[%clk 0:03:00]}  O-O {[%clk 0:02:57]} 8. Nf3 {[%clk 0:02:59]}  c5 {[%clk 0:02:58]} 9. Bd3 {[%clk 0:02:56]}  cxd4 {[%clk 0:02:58]} 10. Nb5 {[%clk 0:02:43]}  Nc5 {[%clk 0:02:40]} 11. Bxh7+ {[%clk 0:02:40]}  Kxh7 {[%clk 0:02:39]} 12. Ng5+ {[%clk 0:02:40]}  Kg6 {[%clk 0:02:24]} 13. Qg4 {[%clk 0:02:39]}  f5 {[%clk 0:02:17]} 14. exf6 {[%clk 0:02:25]}  gxf6 {[%clk 0:02:12]} 15. Ne4+ {[%clk 0:01:56]}  Kh7 {[%clk 0:02:05]} 16. Qh5+ {[%clk 0:01:56]}  Kg7 {[%clk 0:02:02]} 17. Qg4+ {[%clk 0:01:53]}  Kh8 {[%clk 0:01:46]} 18. Qh5+ {[%clk 0:01:53]}  Kg8 {[%clk 0:01:45]} 19. Qg6+ {[%clk 0:01:52]}  Qg7 {[%clk 0:01:45]} 20. Qxg7+ {[%clk 0:01:50]}  Kxg7 {[%clk 0:01:46]} 21. Nxc5 {[%clk 0:01:50]}  Na6 {[%clk 0:01:29]} 22. Nxa6 {[%clk 0:01:46]}  bxa6 {[%clk 0:01:30]} 23. Nxd4 {[%clk 0:01:45]}  e5 {[%clk 0:01:29]} 24. fxe5 {[%clk 0:01:40]}  fxe5 {[%clk 0:01:30]} 25. Nf3 {[%clk 0:01:40]}  Bg4 {[%clk 0:01:28]} 26. O-O {[%clk 0:01:37]}  Rae8 {[%clk 0:01:23]} 27. Rae1 {[%clk 0:01:33]}  Bxf3 {[%clk 0:01:22]} 28. Rxf3 {[%clk 0:01:33]}  Rxf3 {[%clk 0:01:23]} 29. gxf3 {[%clk 0:01:34]}  Kf6 {[%clk 0:01:23]} 30. Re3 {[%clk 0:01:30]}  Rc8 {[%clk 0:01:18]} 31. Rc3 {[%clk 0:01:14]}  Rg8+ {[%clk 0:01:18]} 32. Kf2 {[%clk 0:01:13]}  Kf5 {[%clk 0:01:19]} 33. Ra3 {[%clk 0:01:09]}  Rh8 {[%clk 0:01:19]} 34. Kg2 {[%clk 0:01:08]}  Rh6 {[%clk 0:01:19]} 35. Ra5 {[%clk 0:01:06]}  d4 {[%clk 0:01:19]} 36. Rc5 {[%clk 0:01:00]}  Kf4 {[%clk 0:01:18]} 37. Rc7 {[%clk 0:00:57]}  Ke3 {[%clk 0:01:15]} 38. Re7 {[%clk 0:00:55]}  Rg6+ {[%clk 0:01:12]} 39. Kf1 {[%clk 0:00:55]}  Rg5 {[%clk 0:01:11]} 40. h4 {[%clk 0:00:52]}  Rf5 {[%clk 0:01:08]} 41. Kg2 {[%clk 0:00:52]}  Kd2 {[%clk 0:01:07]} 42. Rc7 {[%clk 0:00:49]}  Ke3 {[%clk 0:01:02]} 43. Rc5 {[%clk 0:00:40]}  Kf4 {[%clk 0:00:56]} 44. Rc7 {[%clk 0:00:37]}  Rf6 {[%clk 0:00:51]} 45. Rxa7 {[%clk 0:00:35]}  Rg6+ {[%clk 0:00:51]} 46. Kf2 {[%clk 0:00:35]}  Rf6 {[%clk 0:00:49]} 47. Rc7 {[%clk 0:00:33]}  e4 {[%clk 0:00:47]} 48. fxe4 {[%clk 0:00:32]}  Kxe4+ {[%clk 0:00:48]} 49. Ke2 {[%clk 0:00:32]}  Re6 {[%clk 0:00:48]} 50. h5 {[%clk 0:00:31]}  Kd5+ {[%clk 0:00:46]} 51. Kd2 {[%clk 0:00:29]}  Rh6 {[%clk 0:00:46]} 52. Rd7+ {[%clk 0:00:26]}  Ke4 {[%clk 0:00:43]} 53. Re7+ {[%clk 0:00:26]}  Kd5 {[%clk 0:00:43]} 54. Ra7 {[%clk 0:00:19]}  Rxh5 {[%clk 0:00:40]} 55. Rxa6 {[%clk 0:00:19]}  Rh2+ {[%clk 0:00:40]} 56. Kd1 {[%clk 0:00:18]}  Rh1+ {[%clk 0:00:39]} 57. Ke2 {[%clk 0:00:17]}  Rh2+ {[%clk 0:00:39]} 58. Kd1 {[%clk 0:00:16]}  Ke4 {[%clk 0:00:39]} 59. b4 {[%clk 0:00:14]}  Rh1+ {[%clk 0:00:35]} 60. Kd2 {[%clk 0:00:14]}  Rh2+ {[%clk 0:00:36]} 61. Kc1 {[%clk 0:00:14]}  d3 {[%clk 0:00:36]} 62. cxd3+ {[%clk 0:00:14]}  Kxd3 {[%clk 0:00:37]} 63. Ra3+ {[%clk 0:00:13]}  Kc4 {[%clk 0:00:37]} 64. Kb1 {[%clk 0:00:12]}  Kxb4 {[%clk 0:00:36]} 65. Rb3+ {[%clk 0:00:12]}  Kc4 {[%clk 0:00:36]} 66. Rb2 {[%clk 0:00:12]}  Rh1+ {[%clk 0:00:37]} 67. Kc2 {[%clk 0:00:12]}  Rg1 {[%clk 0:00:37]} 68. a3 {[%clk 0:00:12]}  Rg2+ {[%clk 0:00:37]} 69. Kb1 {[%clk 0:00:12]}  Rg1+ {[%clk 0:00:38]} 70. Ka2 {[%clk 0:00:11]}  Kc3 {[%clk 0:00:38]} 71. Rb3+ {[%clk 0:00:11]}  Kc4 {[%clk 0:00:38]} 72. Rb4+ {[%clk 0:00:12]}  Kc3 {[%clk 0:00:38]} 73. Rb3+ {[%clk 0:00:12]}  Kc4 {[%clk 0:00:38]} 74. Rb2 {[%clk 0:00:12]}  Kc3 {[%clk 0:00:36]} 75. a4 {[%clk 0:00:12]}  Rg4 {[%clk 0:00:36]} 76. Rb3+ {[%clk 0:00:11]}  Kc2 {[%clk 0:00:35]} 77. Rb2+ {[%clk 0:00:11]}  Kc3 {[%clk 0:00:35]} 78. Ka3 {[%clk 0:00:11]}  Rg1 {[%clk 0:00:34]} 79. Rb3+ {[%clk 0:00:11]}  Kc4 {[%clk 0:00:34]} 80. Rb4+ {[%clk 0:00:10]}  Kc3 {[%clk 0:00:33]} 81. Rb3+ {[%clk 0:00:10]}  Kc4 {[%clk 0:00:33]} 82. Rb4+ {[%clk 0:00:09]}  Kc3 {[%clk 0:00:33]} 83. Rb3+ {[%clk 0:00:10]} 1/2-1/2


[Site "https://www.chess.com"]

[Event "Titled Tuesday Blitz March 01 Late 2022"]
[White "Petrovic, Aleksa"]
[Black "Antonova, Nadezhda"]
[WhiteFideId "967629"]
[BlackFideId "14700182"]
[WhiteElo "2139"]
[BlackElo "1765"]
[Result "1-0"]
[Round "02"]
[TimeControl "180+1"]
[Date "2022.03.02"]
[WhiteClock "0:01:06"]
[BlackClock "0:00:05"]

1. e4 {[%clk 0:02:52]}  c5 {[%clk 0:02:59]} 2. Nf3 {[%clk 0:02:49]}  d6 {[%clk 0:03:00]} 3. d4 {[%clk 0:02:49]}  cxd4 {[%clk 0:03:01]} 4. Nxd4 {[%clk 0:02:50]}  Nf6 {[%clk 0:03:01]} 5. Nc3 {[%clk 0:02:50]}  a6 {[%clk 0:03:02]} 6. Bg5 {[%clk 0:02:50]}  Nbd7 {[%clk 0:03:02]} 7. f4 {[%clk 0:02:49]}  Qc7 {[%clk 0:02:57]} 8. Qf3 {[%clk 0:02:48]}  h6 {[%clk 0:02:57]} 9. Bh4 {[%clk 0:02:44]}  g5 {[%clk 0:02:57]} 10. fxg5 {[%clk 0:02:40]}  hxg5 {[%clk 0:02:57]} 11. Bxg5 {[%clk 0:02:40]}  Qc5 {[%clk 0:02:57]} 12. Be3 {[%clk 0:02:37]}  Ne5 {[%clk 0:02:56]} 13. Qe2 {[%clk 0:02:32]}  Neg4 {[%clk 0:02:36]} 14. Bg1 {[%clk 0:02:30]}  Qb4 {[%clk 0:02:16]} 15. O-O-O {[%clk 0:02:25]}  Bd7 {[%clk 0:01:43]} 16. a3 {[%clk 0:02:21]}  Qa5 {[%clk 0:01:41]} 17. Kb1 {[%clk 0:02:08]}  b5 {[%clk 0:01:34]} 18. Nd5 {[%clk 0:02:03]}  Nxd5 {[%clk 0:01:21]} 19. exd5 {[%clk 0:02:04]}  Ne5 {[%clk 0:00:42]} 20. Bf2 {[%clk 0:01:57]}  b4 {[%clk 0:00:40]} 21. Nb3 {[%clk 0:01:43]}  Qa4 {[%clk 0:00:34]} 22. axb4 {[%clk 0:01:28]}  Bg4 {[%clk 0:00:24]} 23. Qd2 {[%clk 0:01:18]}  Bh6 {[%clk 0:00:23]} 24. Qd4 {[%clk 0:01:12]}  Bxd1 {[%clk 0:00:20]} 25. Qxd1 {[%clk 0:01:12]}  Qxb4 {[%clk 0:00:15]} 26. Bd3 {[%clk 0:01:06]}  a5 {[%clk 0:00:05]} 27. c3 {[%clk 0:01:06]} 1-0


[Site "https://www.chess.com"]

[Event "Titled Tuesday Blitz March 01 Late 2022"]
[White "Piesik, Piotr"]
[Black "Ibarra Jerez, Jose Carlos"]
[WhiteFideId "1136194"]
[BlackFideId "2226332"]
[WhiteElo "2232"]
[BlackElo "2626"]
[Result "1/2-1/2"]
[Round "02"]
[TimeControl "180+1"]
[Date "2022.03.01"]
[WhiteClock "0:00:10"]
[BlackClock "0:00:07"]

1. Nf3 {[%clk 0:02:56]}  Nf6 {[%clk 0:02:57]} 2. g3 {[%clk 0:02:57]}  g6 {[%clk 0:02:58]} 3. Bg2 {[%clk 0:02:57]}  Bg7 {[%clk 0:02:58]} 4. O-O {[%clk 0:02:58]}  O-O {[%clk 0:02:58]} 5. d4 {[%clk 0:02:59]}  d6 {[%clk 0:02:59]} 6. Nbd2 {[%clk 0:02:59]}  Nc6 {[%clk 0:02:55]} 7. e4 {[%clk 0:02:59]}  e5 {[%clk 0:02:55]} 8. dxe5 {[%clk 0:03:00]}  Nxe5 {[%clk 0:02:51]} 9. Nxe5 {[%clk 0:03:00]}  dxe5 {[%clk 0:02:52]} 10. Qe2 {[%clk 0:03:01]}  Qe7 {[%clk 0:02:47]} 11. b3 {[%clk 0:03:00]}  Bg4 {[%clk 0:02:34]} 12. Bf3 {[%clk 0:02:59]}  Bh3 {[%clk 0:02:32]} 13. Rd1 {[%clk 0:02:59]}  Rfd8 {[%clk 0:02:28]} 14. Bb2 {[%clk 0:02:58]}  Nd7 {[%clk 0:02:08]} 15. Nc4 {[%clk 0:02:56]}  b6 {[%clk 0:02:04]} 16. a4 {[%clk 0:02:50]}  a5 {[%clk 0:02:01]} 17. Bg4 {[%clk 0:02:50]}  Bxg4 {[%clk 0:01:58]} 18. Qxg4 {[%clk 0:02:50]}  h5 {[%clk 0:01:54]} 19. Qe2 {[%clk 0:02:50]}  Bh6 {[%clk 0:01:43]} 20. Rd5 {[%clk 0:02:44]}  f6 {[%clk 0:01:33]} 21. Rad1 {[%clk 0:02:43]}  Nf8 {[%clk 0:01:22]} 22. Ba3 {[%clk 0:02:41]}  Qe8 {[%clk 0:01:20]} 23. Bxf8 {[%clk 0:02:37]}  Kxf8 {[%clk 0:01:16]} 24. Qd3 {[%clk 0:02:25]}  Rxd5 {[%clk 0:01:16]} 25. Qxd5 {[%clk 0:02:26]}  Rb8 {[%clk 0:01:14]} 26. Na3 {[%clk 0:02:15]}  Ke7 {[%clk 0:00:50]} 27. Qc4 {[%clk 0:02:11]}  c6 {[%clk 0:00:43]} 28. Qd3 {[%clk 0:02:02]}  Rd8 {[%clk 0:00:40]} 29. Qxd8+ {[%clk 0:02:02]}  Qxd8 {[%clk 0:00:41]} 30. Rxd8 {[%clk 0:02:02]}  Kxd8 {[%clk 0:00:42]} 31. Nc4 {[%clk 0:02:03]}  Kc7 {[%clk 0:00:42]} 32. Kf1 {[%clk 0:02:03]}  Bf8 {[%clk 0:00:42]} 33. Ke2 {[%clk 0:02:02]}  b5 {[%clk 0:00:42]} 34. Nb2 {[%clk 0:01:58]}  Ba3 {[%clk 0:00:39]} 35. Nd3 {[%clk 0:01:57]}  bxa4 {[%clk 0:00:40]} 36. bxa4 {[%clk 0:01:57]}  Kd6 {[%clk 0:00:39]} 37. f4 {[%clk 0:01:55]}  Bc5 {[%clk 0:00:38]} 38. fxe5+ {[%clk 0:01:52]}  fxe5 {[%clk 0:00:38]} 39. h3 {[%clk 0:01:52]}  Bd4 {[%clk 0:00:36]} 40. Kd2 {[%clk 0:01:48]}  Bg1 {[%clk 0:00:26]} 41. Nb2 {[%clk 0:01:44]}  Kc5 {[%clk 0:00:22]} 42. c3 {[%clk 0:01:44]}  Bh2 {[%clk 0:00:19]} 43. g4 {[%clk 0:01:44]}  hxg4 {[%clk 0:00:19]} 44. hxg4 {[%clk 0:01:45]}  Bf4+ {[%clk 0:00:19]} 45. Kc2 {[%clk 0:01:43]}  Kb6 {[%clk 0:00:15]} 46. Nc4+ {[%clk 0:01:42]}  Ka6 {[%clk 0:00:15]} 47. Kb3 {[%clk 0:01:40]}  Bg3 {[%clk 0:00:15]} 48. Nd6 {[%clk 0:01:39]}  Kb6 {[%clk 0:00:14]} 49. Nf7 {[%clk 0:01:26]}  Bf4 {[%clk 0:00:14]} 50. Nh8 {[%clk 0:01:22]}  g5 {[%clk 0:00:13]} 51. Nf7 {[%clk 0:01:21]}  Kc7 {[%clk 0:00:14]} 52. Kc4 {[%clk 0:01:21]}  Kd7 {[%clk 0:00:14]} 53. Nh6 {[%clk 0:01:20]}  Be3 {[%clk 0:00:12]} 54. Nf5 {[%clk 0:01:08]}  Bf2 {[%clk 0:00:12]} 55. Kd3 {[%clk 0:01:00]}  Kc7 {[%clk 0:00:13]} 56. Ng7 {[%clk 0:00:56]}  Kd7 {[%clk 0:00:12]} 57. Ke2 {[%clk 0:00:55]}  Bc5 {[%clk 0:00:11]} 58. Nf5 {[%clk 0:00:54]}  Ke6 {[%clk 0:00:10]} 59. Ng3 {[%clk 0:00:54]}  Kd6 {[%clk 0:00:10]} 60. Kd3 {[%clk 0:00:53]}  Bf2 {[%clk 0:00:10]} 61. Nf1 {[%clk 0:00:53]}  Kc5 {[%clk 0:00:10]} 62. Nd2 {[%clk 0:00:52]}  Bg3 {[%clk 0:00:09]} 63. Nb3+ {[%clk 0:00:53]}  Kb6 {[%clk 0:00:09]} 64. Kc4 {[%clk 0:00:53]}  Bf4 {[%clk 0:00:10]} 65. Nc5 {[%clk 0:00:53]}  Kc7 {[%clk 0:00:09]} 66. Nd3 {[%clk 0:00:51]}  Bg3 {[%clk 0:00:08]} 67. Kc5 {[%clk 0:00:50]}  Bh2 {[%clk 0:00:09]} 68. Ne1 {[%clk 0:00:48]}  Bg1+ {[%clk 0:00:09]} 69. Kc4 {[%clk 0:00:48]}  Be3 {[%clk 0:00:08]} 70. Nc2 {[%clk 0:00:46]}  Bf2 {[%clk 0:00:07]} 71. Kd3 {[%clk 0:00:46]}  Kb6 {[%clk 0:00:07]} 72. Na3 {[%clk 0:00:45]}  Bg3 {[%clk 0:00:08]} 73. Nc4+ {[%clk 0:00:44]}  Ka6 {[%clk 0:00:08]} 74. Nd6 {[%clk 0:00:39]}  Kb6 {[%clk 0:00:08]} 75. Kc4 {[%clk 0:00:36]}  Bf4 {[%clk 0:00:07]} 76. Ne8 {[%clk 0:00:34]}  Be3 {[%clk 0:00:05]} 77. Nf6 {[%clk 0:00:33]}  Bf4 {[%clk 0:00:05]} 78. Nd7+ {[%clk 0:00:29]}  Kc7 {[%clk 0:00:05]} 79. Nc5 {[%clk 0:00:30]}  Kb6 {[%clk 0:00:06]} 80. Nd3 {[%clk 0:00:29]}  Bg3 {[%clk 0:00:06]} 81. Kb3 {[%clk 0:00:28]}  Bh2 {[%clk 0:00:06]} 82. Kc2 {[%clk 0:00:28]}  Bg3 {[%clk 0:00:07]} 83. Kd1 {[%clk 0:00:28]}  Bh2 {[%clk 0:00:07]} 84. Ke2 {[%clk 0:00:28]}  Bf4 {[%clk 0:00:07]} 85. Nb2 {[%clk 0:00:23]}  Kc5 {[%clk 0:00:07]} 86. Kd3 {[%clk 0:00:24]}  Kb6 {[%clk 0:00:06]} 87. Nc4+ {[%clk 0:00:24]}  Ka6 {[%clk 0:00:06]} 88. Na3 {[%clk 0:00:22]}  Kb6 {[%clk 0:00:07]} 89. Nc2 {[%clk 0:00:22]}  Kc5 {[%clk 0:00:06]} 90. Na1 {[%clk 0:00:22]}  Kb6 {[%clk 0:00:06]} 91. Nb3 {[%clk 0:00:22]}  Bg3 {[%clk 0:00:06]} 92. c4 {[%clk 0:00:19]}  c5 {[%clk 0:00:04]} 93. Nd2 {[%clk 0:00:19]}  Kc6 {[%clk 0:00:04]} 94. Ke2 {[%clk 0:00:17]}  Bf4 {[%clk 0:00:04]} 95. Nb3 {[%clk 0:00:16]}  Kb6 {[%clk 0:00:05]} 96. Kf3 {[%clk 0:00:16]}  Bh2 {[%clk 0:00:05]} 97. Kg2 {[%clk 0:00:12]}  Bf4 {[%clk 0:00:05]} 98. Kf2 {[%clk 0:00:13]}  Bh2 {[%clk 0:00:05]} 99. Nd2 {[%clk 0:00:13]}  Bf4 {[%clk 0:00:06]} 100. Nf3 {[%clk 0:00:14]}  Kc6 {[%clk 0:00:06]} 101. Ne1 {[%clk 0:00:13]}  Kb6 {[%clk 0:00:06]} 102. Nd3 {[%clk 0:00:14]}  Kc6 {[%clk 0:00:06]} 103. Kf3 {[%clk 0:00:13]}  Kb6 {[%clk 0:00:06]} 104. Kf2 {[%clk 0:00:09]}  Kc6 {[%clk 0:00:06]} 105. Kf3 {[%clk 0:00:09]}  Kb6 {[%clk 0:00:07]} 106. Kf2 {[%clk 0:00:10]} 1/2-1/2


[Site "https://www.chess.com"]

[Event "Titled Tuesday Blitz March 01 Late 2022"]
[White "Pinheiro, Iung Alicio de O."]
[Black "Scalzo, Antonio R"]
[WhiteFideId "2104350"]
[BlackFideId "2079674"]
[WhiteElo "2514"]
[BlackElo "2299"]
[Result "1-0"]
[Round "02"]
[TimeControl "180+1"]
[Date "2022.03.02"]
[WhiteClock "0:00:52"]
[BlackClock "0:01:08"]

1. e4 {[%clk 0:03:00]}  Nf6 {[%clk 0:02:58]} 2. e5 {[%clk 0:02:59]}  Nd5 {[%clk 0:02:58]} 3. d4 {[%clk 0:02:59]}  d6 {[%clk 0:02:58]} 4. Nf3 {[%clk 0:02:59]}  Bg4 {[%clk 0:02:57]} 5. Be2 {[%clk 0:02:55]}  e6 {[%clk 0:02:57]} 6. c4 {[%clk 0:02:54]}  Nb6 {[%clk 0:02:57]} 7. exd6 {[%clk 0:02:54]}  cxd6 {[%clk 0:02:58]} 8. O-O {[%clk 0:02:53]}  Be7 {[%clk 0:02:58]} 9. Nc3 {[%clk 0:02:50]}  O-O {[%clk 0:02:58]} 10. b3 {[%clk 0:02:35]}  d5 {[%clk 0:02:52]} 11. c5 {[%clk 0:02:31]}  N6d7 {[%clk 0:02:51]} 12. h3 {[%clk 0:02:30]}  Bh5 {[%clk 0:02:48]} 13. b4 {[%clk 0:02:17]}  a6 {[%clk 0:02:46]} 14. a4 {[%clk 0:02:06]}  Nc6 {[%clk 0:02:34]} 15. Rb1 {[%clk 0:02:02]}  Bg6 {[%clk 0:02:18]} 16. Bd3 {[%clk 0:01:59]}  Nf6 {[%clk 0:01:49]} 17. Bxg6 {[%clk 0:01:49]}  hxg6 {[%clk 0:01:49]} 18. Re1 {[%clk 0:01:48]}  Qc7 {[%clk 0:01:42]} 19. Bg5 {[%clk 0:01:43]}  Rfe8 {[%clk 0:01:29]} 20. Bh4 {[%clk 0:01:41]}  Nh5 {[%clk 0:01:25]} 21. Bxe7 {[%clk 0:01:33]}  Rxe7 {[%clk 0:01:25]} 22. b5 {[%clk 0:01:34]}  Na5 {[%clk 0:01:25]} 23. Ne5 {[%clk 0:01:22]}  Nf6 {[%clk 0:01:17]} 24. Qd3 {[%clk 0:01:04]}  Nd7 {[%clk 0:01:17]} 25. Nf3 {[%clk 0:01:01]}  Nc4 {[%clk 0:01:16]} 26. Nxd5 {[%clk 0:01:01]}  exd5 {[%clk 0:01:14]} 27. Rxe7 {[%clk 0:01:01]}  axb5 {[%clk 0:01:14]} 28. axb5 {[%clk 0:00:59]}  Qd8 {[%clk 0:01:13]} 29. Ree1 {[%clk 0:00:57]}  Nf6 {[%clk 0:01:12]} 30. Ne5 {[%clk 0:00:56]}  Ra4 {[%clk 0:01:09]} 31. Nxc4 {[%clk 0:00:55]}  Rxc4 {[%clk 0:01:09]} 32. c6 {[%clk 0:00:52]}  bxc6 {[%clk 0:01:08]} 33. b6 {[%clk 0:00:52]} 1-0


[Site "https://www.chess.com"]

[Event "Titled Tuesday Blitz March 01 Late 2022"]
[White "Prohorov, Olexandr"]
[Black "Kopczynski, Michal"]
[WhiteFideId "14105578"]
[BlackFideId "1124200"]
[WhiteElo "1993"]
[BlackElo "2235"]
[Result "1-0"]
[Round "02"]
[TimeControl "180+1"]
[Date "2022.03.02"]
[WhiteClock "0:02:18"]
[BlackClock "0:01:05"]

1. e4 {[%clk 0:03:00]}  b6 {[%clk 0:03:00]} 2. d4 {[%clk 0:02:59]}  Bb7 {[%clk 0:03:00]} 3. Nc3 {[%clk 0:03:00]}  e6 {[%clk 0:03:01]} 4. Bd3 {[%clk 0:03:01]}  Nf6 {[%clk 0:03:01]} 5. Qe2 {[%clk 0:03:01]}  d5 {[%clk 0:03:02]} 6. exd5 {[%clk 0:02:59]}  Nxd5 {[%clk 0:03:02]} 7. Nf3 {[%clk 0:02:58]}  Bb4 {[%clk 0:03:00]} 8. Bd2 {[%clk 0:02:58]}  Bxc3 {[%clk 0:03:00]} 9. bxc3 {[%clk 0:02:59]}  h6 {[%clk 0:02:54]} 10. O-O {[%clk 0:02:59]}  O-O {[%clk 0:02:54]} 11. Qe4 {[%clk 0:02:56]}  g6 {[%clk 0:02:50]} 12. c4 {[%clk 0:02:56]}  Nd7 {[%clk 0:02:41]} 13. cxd5 {[%clk 0:02:56]}  Bxd5 {[%clk 0:02:40]} 14. Qg4 {[%clk 0:02:54]}  Nf6 {[%clk 0:02:35]} 15. Qg3 {[%clk 0:02:52]}  Kg7 {[%clk 0:02:32]} 16. c4 {[%clk 0:02:51]}  Bb7 {[%clk 0:02:32]} 17. Bc3 {[%clk 0:02:51]}  Nh5 {[%clk 0:02:22]} 18. Qe5+ {[%clk 0:02:49]}  f6 {[%clk 0:01:45]} 19. Qxe6 {[%clk 0:02:46]}  Nf4 {[%clk 0:01:45]} 20. Qe3 {[%clk 0:02:40]}  Qd6 {[%clk 0:01:45]} 21. d5 {[%clk 0:02:38]}  Rae8 {[%clk 0:01:41]} 22. Qd2 {[%clk 0:02:38]}  c6 {[%clk 0:01:39]} 23. Bb4 {[%clk 0:02:30]}  c5 {[%clk 0:01:37]} 24. Bc3 {[%clk 0:02:30]}  Bc8 {[%clk 0:01:36]} 25. h3 {[%clk 0:02:25]}  g5 {[%clk 0:01:29]} 26. Rfe1 {[%clk 0:02:24]}  h5 {[%clk 0:01:28]} 27. Rxe8 {[%clk 0:02:21]}  Rxe8 {[%clk 0:01:29]} 28. Re1 {[%clk 0:02:22]}  Rh8 {[%clk 0:01:25]} 29. Nxg5 {[%clk 0:02:18]}  Kh6 {[%clk 0:01:09]} 30. Ne6 {[%clk 0:02:17]}  Bxe6 {[%clk 0:01:05]} 31. Rxe6 {[%clk 0:02:18]} 1-0


[Site "https://www.chess.com"]

[Event "Titled Tuesday Blitz March 01 Late 2022"]
[White "Rangel, Daniel"]
[Black "Gerbelli Neto, Eduardo"]
[WhiteFideId "2124475"]
[BlackFideId "2103281"]
[WhiteElo "2187"]
[BlackElo "2178"]
[Result "1-0"]
[Round "02"]
[TimeControl "180+1"]
[Date "2022.03.02"]
[WhiteClock "0:00:25"]
[BlackClock "0:00:20"]

1. d4 {[%clk 0:03:00]}  d5 {[%clk 0:02:59]} 2. c4 {[%clk 0:03:00]}  c6 {[%clk 0:03:00]} 3. Nc3 {[%clk 0:02:56]}  Nf6 {[%clk 0:03:00]} 4. Bf4 {[%clk 0:02:53]}  dxc4 {[%clk 0:02:59]} 5. a4 {[%clk 0:02:51]}  e6 {[%clk 0:02:59]} 6. e4 {[%clk 0:02:50]}  Bb4 {[%clk 0:02:59]} 7. f3 {[%clk 0:02:49]}  b5 {[%clk 0:02:49]} 8. Nh3 {[%clk 0:02:43]}  Nbd7 {[%clk 0:02:48]} 9. Be2 {[%clk 0:02:41]}  Bb7 {[%clk 0:02:45]} 10. O-O {[%clk 0:02:41]}  a6 {[%clk 0:02:45]} 11. Qe1 {[%clk 0:02:32]}  Qb6 {[%clk 0:02:32]} 12. Be3 {[%clk 0:02:30]}  e5 {[%clk 0:02:29]} 13. Qf2 {[%clk 0:02:27]}  exd4 {[%clk 0:02:28]} 14. Bxd4 {[%clk 0:02:27]}  Bc5 {[%clk 0:02:29]} 15. Rad1 {[%clk 0:02:16]}  O-O-O {[%clk 0:02:23]} 16. axb5 {[%clk 0:02:09]}  cxb5 {[%clk 0:02:21]} 17. Nf4 {[%clk 0:02:08]}  Bxd4 {[%clk 0:02:11]} 18. Rxd4 {[%clk 0:02:08]}  Kb8 {[%clk 0:00:59]} 19. Nfd5 {[%clk 0:02:00]}  Nxd5 {[%clk 0:00:58]} 20. exd5 {[%clk 0:01:47]}  Ka7 {[%clk 0:00:52]} 21. Rfd1 {[%clk 0:01:42]}  Ne5 {[%clk 0:00:47]} 22. f4 {[%clk 0:01:25]}  Ng6 {[%clk 0:00:41]} 23. Bf3 {[%clk 0:01:22]}  Ne7 {[%clk 0:00:39]} 24. d6 {[%clk 0:01:19]}  Nf5 {[%clk 0:00:39]} 25. Nd5 {[%clk 0:01:02]}  Bxd5 {[%clk 0:00:39]} 26. Rxd5 {[%clk 0:01:03]}  Qxf2+ {[%clk 0:00:38]} 27. Kxf2 {[%clk 0:01:04]}  g6 {[%clk 0:00:35]} 28. d7 {[%clk 0:00:53]}  h5 {[%clk 0:00:30]} 29. Rc5 {[%clk 0:00:48]}  Kb6 {[%clk 0:00:19]} 30. Rc6+ {[%clk 0:00:45]}  Ka5 {[%clk 0:00:19]} 31. Ra1+ {[%clk 0:00:45]}  Kb4 {[%clk 0:00:20]} 32. Rd1 {[%clk 0:00:37]}  a5 {[%clk 0:00:19]} 33. Rb6 {[%clk 0:00:38]}  Rb8 {[%clk 0:00:18]} 34. Rxb8 {[%clk 0:00:37]}  Rxb8 {[%clk 0:00:18]} 35. d8=Q {[%clk 0:00:37]}  Rxd8 {[%clk 0:00:19]} 36. Rxd8 {[%clk 0:00:38]}  a4 {[%clk 0:00:20]} 37. Rb8 {[%clk 0:00:36]}  c3 {[%clk 0:00:19]} 38. bxc3+ {[%clk 0:00:35]}  Kxc3 {[%clk 0:00:20]} 39. Rxb5 {[%clk 0:00:34]}  a3 {[%clk 0:00:21]} 40. Bd5 {[%clk 0:00:33]}  Nd4 {[%clk 0:00:20]} 41. Ra5 {[%clk 0:00:31]}  Kb2 {[%clk 0:00:21]} 42. Bxf7 {[%clk 0:00:29]}  Nb3 {[%clk 0:00:19]} 43. Rb5 {[%clk 0:00:28]}  a2 {[%clk 0:00:20]} 44. Rxb3+ {[%clk 0:00:25]}  Kc2 {[%clk 0:00:20]} 45. Ra3 {[%clk 0:00:25]} 1-0


[Site "https://www.chess.com"]